[Event "ESTCC-65 2025"]
[Site "Swidnica"]
[Date "2025.04.06"]
[Round "2.10"]
[White "Joentausta, Hannu"]
[Black "Bowmer, Kevin"]
[Result "0-1"]
[Annotator "ChessBase"]
[ECO "B62"]
[WhiteElo "2081"]
[BlackElo "2126"]
[PlyCount "64"]
[EventDate "2025.04.05"]
[EventType "team-tourn"]
[EventCountry "POL"]
[SourceTitle "playchess.com"]
[Source "ChessBase"]
[SourceQuality "1"]
[WhiteTeam "Finland"]
[BlackTeam "England"]
[WhiteTeamCountry "FIN"]
[BlackTeamCountry "ENG"]
[TimeControl "40/5400+30:1800+30"]

1. e4 {[%emt 0:00:03]} c5 {[%emt 0:00:05]} 2. Nf3 {[%emt 0:00:08]} d6 {[%emt 0:00:05]} 3. d4 {[%emt 0:00:06]} cxd4 {[%emt 0:00:08]} 4. Nxd4 {[%emt 0:00:06]} Nf6 {[%emt 0:00:09]} 5. Nc3 {[%emt 0:00:07]} Nc6 {[%emt 0:00:13]} 6. Bg5 {[%emt 0:02:42]} e6 {[%emt 0:00:14]} 7. Be2 {[%emt 0:00:23]} Be7 {[%emt 0:00:41]} 8. Qd3 {[%emt 0:00:31]} O-O {[%emt 0:00:50]} 9. O-O {[%emt 0:05:35]} Qa5 {[%emt 0:13:24]} 10. Nxc6 {[%emt 0:14:31]} bxc6 {[%emt 0:00:06]} 11. Bd2 {[%emt 0:00:08]} Qc7 {[%emt 0:03:43]} 12. Qg3 {[%emt 0:00:10]} Kh8 {[%emt 0:03:40]} 13. Kh1 {[%emt 0:03:31]} Bb7 {[%emt 0:11:02]} 14. f4 {[%emt 0:08:34]} d5 {[%emt 0:02:10]} 15. Bd3 {[%emt 0:08:53]} d4 {[%emt 0:05:25]} 16. Nd1 {[%emt 0:10:40]} c5 {[%emt 0:02:35]} 17. e5 {[%emt 0:02:32]} Ne4 {[%emt 0:01:50]} 18. Qe1 {[%emt 0:00:32]} Qc6 {[%emt 0:07:50]} 19. Bxe4 {[%emt 0:02:21]} Qxe4 {[%emt 0:00:08]} 20. Qxe4 {[%emt 0:00:09]} Bxe4 {[%emt 0:00:10]} 21. Rc1 {[%emt 0:00:24]} Bd5 {[%emt 0:10:07]} 22. b3 {[%emt 0:03:23]} c4 {[%emt 0:02:53]} 23. Nf2 {[%emt 0:04:30]} Rac8 {[%emt 0:03:24]} 24. Rfd1 {[%emt 0:02:34]} Ba3 {[%emt 0:11:04]} 25. Ra1 {[%emt 0:01:04]} d3 {[%emt 0:09:02]} 26. cxd3 {[%emt 0:13:33]} c3 {[%emt 0:00:02]} 27. Bc1 {[%emt 0:01:04]} Bc5 {[%emt 0:03:37]} 28. d4 {[%emt 0:03:23]} c2 {[%emt 0:00:37]} 29. Rd3 {[%emt 0:00:25]} Bb4 {[%emt 0:02:11]} 30. a3 {[%emt 0:00:42]} Bc3 {[%emt 0:00:33]} 31. Rxc3 {[%emt 0:03:53]} Rc7 32. Rc4 {[%emt 0:01:31]} Rxc4 {[%emt 0:00:35]} 0-1

[Event "ESTCC-65 2025"]
[Site "Swidnica"]
[Date "2025.04.06"]
[Round "2.11"]
[White "Hewson, Brian W R"]
[Black "Vinke, Dietmar"]
[Result "1/2-1/2"]
[Annotator "NA"]
[ECO "E84"]
[WhiteElo "2066"]
[BlackElo "2078"]
[PlyCount "27"]
[EventDate "2025.04.05"]
[EventType "team-tourn"]
[EventCountry "POL"]
[SourceTitle "playchess.com"]
[Source "ChessBase"]
[SourceQuality "1"]
[WhiteTeam "England"]
[BlackTeam "Finland"]
[WhiteTeamCountry "ENG"]
[BlackTeamCountry "FIN"]
[TimeControl "40/5400+30:1800+30"]

1. d4 {[%emt 0:00:08]} Nf6 {[%emt 0:00:06]} 2. c4 {[%emt 0:01:38]} g6 {[%emt 0:00:06]} 3. Nc3 {[%emt 0:00:07]} Bg7 {[%emt 0:00:05]} 4. e4 {[%emt 0:00:50]} d6 {[%emt 0:00:05]} 5. f3 {[%emt 0:00:07]} O-O {[%emt 0:00:08]} 6. Be3 {[%emt 0:00:04]} Nc6 {[%emt 0:00:09]} 7. Qd2 {[%emt 0:01:47]} a6 {[%emt 0:00:21]} 8. Nge2 {[%emt 0:02:48]} Rb8 {[%emt 0:00:07]} 9. Bh6 {[%emt 0:07:44]} Bxh6 {[%emt 0:09:20]} 10. Qxh6 {[%emt 0:00:24]} e5 {[%emt 0:00:04]} 11. d5 {[%emt 0:07:31]} Ne7 {[%emt 0:27:17]} 12. g4 {[%emt 0:07:23]} Kh8 {[%emt 0:02:16]} 13. Ng3 {[%emt 0:06:41]} Nfg8 {[%emt 0:04:55]} 14. Qd2 {[%emt 0:02:11]} 1/2-1/2

[Event "ESTCC-65 2025"]
[Site "Swidnica"]
[Date "2025.04.06"]
[Round "2.12"]
[White "Patola, Eero"]
[Black "Reynolds, D Ian W"]
[Result "1/2-1/2"]
[Annotator "NA"]
[ECO "A22"]
[WhiteElo "1872"]
[BlackElo "1926"]
[PlyCount "46"]
[EventDate "2025.04.05"]
[EventType "team-tourn"]
[EventCountry "POL"]
[SourceTitle "playchess.com"]
[Source "ChessBase"]
[SourceQuality "1"]
[WhiteTeam "Finland"]
[BlackTeam "England"]
[WhiteTeamCountry "FIN"]
[BlackTeamCountry "ENG"]
[TimeControl "40/5400+30:1800+30"]

1. c4 {[%emt 0:00:05]} e5 {[%emt 0:00:07]} 2. Nc3 {[%emt 0:00:08]} Nf6 {[%emt 0:00:16]} 3. e4 {[%emt 0:01:05]} Nc6 {[%emt 0:01:34]} 4. g3 {[%emt 0:00:21]} Bc5 {[%emt 0:01:14]} 5. Bg2 {[%emt 0:00:13]} d6 {[%emt 0:00:43]} 6. h3 {[%emt 0:00:23]} Nd4 {[%emt 0:02:28]} 7. d3 {[%emt 0:01:01]} O-O {[%emt 0:01:13]} 8. Nge2 {[%emt 0:01:26]} c6 {[%emt 0:00:53]} 9. Nxd4 {[%emt 0:00:50]} Bxd4 {[%emt 0:00:34]} 10. O-O {[%emt 0:00:21]} h6 {[%emt 0:00:46]} 11. Rb1 {[%emt 0:02:04]} a5 {[%emt 0:01:42]} 12. Kh2 {[%emt 0:01:50]} Nh7 {[%emt 0:07:28]} 13. Qe2 {[%emt 0:06:24]} f5 {[%emt 0:02:55]} 14. f4 {[%emt 0:00:37]} fxe4 {[%emt 0:02:52]} 15. Nxe4 {[%emt 0:01:28]} Nf6 {[%emt 0:01:36]} 16. Be3 {[%emt 0:03:03]} Nxe4 {[%emt 0:04:11]} 17. dxe4 {[%emt 0:02:55]} Bxe3 {[%emt 0:08:01]} 18. Qxe3 {[%emt 0:00:11]} Be6 {[%emt 0:02:02]} 19. b3 {[%emt 0:01:03]} exf4 {[%emt 0:01:45]} 20. Rxf4 {[%emt 0:01:00]} Qe7 {[%emt 0:07:56]} 21. Rbf1 {[%emt 0:05:27]} Rf7 {[%emt 0:00:41]} 22. R1f3 Rxf4 {[%emt 0:04:31]} 23. Rxf4 {[%emt 0:02:40]} Rf8 1/2-1/2

[Event "ESTCC-65 2025"]
[Site "Swidnica"]
[Date "2025.04.06"]
[Round "2.13"]
[White "Kyas, Juergen"]
[Black "Raupp, Thomas"]
[Result "1/2-1/2"]
[Annotator "ChessBase"]
[ECO "C24"]
[WhiteElo "2168"]
[BlackElo "2247"]
[PlyCount "26"]
[EventDate "2025.04.05"]
[EventType "team-tourn"]
[EventCountry "POL"]
[SourceTitle "playchess.com"]
[Source "ChessBase"]
[SourceQuality "1"]
[WhiteTeam "Germany"]
[BlackTeam "Germany"]
[WhiteTeamCountry "GER"]
[BlackTeamCountry "GER"]
[TimeControl "40/5400+30:1800+30"]

1. e4 {[%emt 0:00:03]} e5 {[%emt 0:00:10]} 2. Bc4 {[%emt 0:00:10]} Nf6 {[%emt 0:00:06]} 3. d3 {[%emt 0:00:14]} c6 {[%emt 0:00:10]} 4. Nf3 {[%emt 0:00:03]} d5 {[%emt 0:00:18]} 5. Bb3 {[%emt 0:00:02]} Bb4+ {[%emt 0:00:38]} 6. Bd2 {[%emt 0:00:20]} Bxd2+ {[%emt 0:00:05]} 7. Qxd2 {[%emt 0:00:14]} O-O {[%emt 0:00:20]} 8. exd5 {[%emt 0:04:21]} cxd5 {[%emt 0:02:44]} 9. Nxe5 {[%emt 0:00:36]} Re8 {[%emt 0:15:26]} 10. f4 {[%emt 0:01:47]} Nc6 {[%emt 0:03:55]} 11. O-O {[%emt 0:01:16]} Nxe5 {[%emt 0:01:15]} 12. fxe5 {[%emt 0:00:03]} Rxe5 {[%emt 0:00:13]} 13. Nc3 {[%emt 0:01:27]} Be6 {[%emt 0:20:53]} 1/2-1/2

[Event "ESTCC-65 2025"]
[Site "Swidnica"]
[Date "2025.04.06"]
[Round "2.14"]
[White "Miltner, Arndt"]
[Black "Jahnel, Guenther"]
[Result "0-1"]
[Annotator "ChessBase"]
[ECO "A00"]
[WhiteElo "2232"]
[BlackElo "2148"]
[PlyCount "80"]
[EventDate "2025.04.05"]
[EventType "team-tourn"]
[EventCountry "POL"]
[SourceTitle "playchess.com"]
[Source "ChessBase"]
[SourceQuality "1"]
[WhiteTeam "Germany"]
[BlackTeam "Germany"]
[WhiteTeamCountry "GER"]
[BlackTeamCountry "GER"]
[TimeControl "40/5400+30:1800+30"]

1. b4 {[%emt 0:00:11]} e6 {[%emt 0:00:33]} 2. Bb2 {[%emt 0:00:25]} Nf6 {[%emt 0:00:28]} 3. a3 {[%emt 0:00:47]} a5 {[%emt 0:03:58]} 4. b5 {[%emt 0:00:43]} d5 {[%emt 0:00:31]} 5. e3 {[%emt 0:01:04]} c5 {[%emt 0:03:00]} 6. Nf3 {[%emt 0:02:13]} Nbd7 {[%emt 0:04:16]} 7. d3 {[%emt 0:03:30]} b6 {[%emt 0:04:26]} 8. Nbd2 {[%emt 0:02:15]} Bb7 {[%emt 0:01:27]} 9. c4 {[%emt 0:01:05]} Bd6 {[%emt 0:04:13]} 10. Be2 {[%emt 0:02:02]} O-O {[%emt 0:01:23]} 11. O-O {[%emt 0:00:30]} Rc8 12. Rc1 {[%emt 0:06:25]} Re8 {[%emt 0:10:51]} 13. Qa4 {[%emt 0:00:30]} Bb8 {[%emt 0:04:14]} 14. Rfe1 {[%emt 0:03:45]} Qe7 {[%emt 0:08:55]} 15. cxd5 {[%emt 0:05:33]} exd5 {[%emt 0:01:08]} 16. Qh4 {[%emt 0:05:13]} h6 17. Bf1 {[%emt 0:07:28]} Qd6 {[%emt 0:14:38]} 18. Rcd1 {[%emt 0:00:30]} Qc7 {[%emt 0:02:59]} 19. Qh3 {[%emt 0:03:56]} Re6 {[%emt 0:05:13]} 20. Nh4 {[%emt 0:10:27]} Rce8 {[%emt 0:10:49]} 21. Nf5 {[%emt 0:00:30]} d4 {[%emt 0:09:32]} 22. e4 {[%emt 0:04:03]} Nf8 {[%emt 0:00:30]} 23. g3 {[%emt 0:02:23]} Bc8 {[%emt 0:00:48]} 24. Nc4 {[%emt 0:04:54]} Ng6 {[%emt 0:01:02]} 25. Bc1 {[%emt 0:02:20]} h5 {[%emt 0:03:46]} 26. Be2 {[%emt 0:14:32]} Nxe4 {[%emt 0:03:08]} 27. dxe4 {[%emt 0:00:58]} Rxe4 {[%emt 0:00:01]} 28. Kf1 {[%emt 0:01:02]} Ne7 {[%emt 0:01:10]} 29. Nxe7+ {[%emt 0:04:09]} Qxe7 {[%emt 0:00:10]} 30. Qxh5 {[%emt 0:00:13]} d3 {[%emt 0:01:05]} 31. Ne3 {[%emt 0:01:31]} dxe2+ {[%emt 0:00:18]} 32. Qxe2 {[%emt 0:01:05]} Qe6 {[%emt 0:00:41]} 33. Qh5 {[%emt 0:01:43]} Qb3 {[%emt 0:00:36]} 34. Kg1 {[%emt 0:05:35]} Bg4 {[%emt 0:00:34]} 35. Qxg4 {[%emt 0:01:04]} Rxg4 {[%emt 0:00:09]} 36. Nxg4 {[%emt 0:00:03]} Rxe1+ {[%emt 0:00:24]} 37. Rxe1 {[%emt 0:00:02]} Bd6 {[%emt 0:00:21]} 38. Ne3 {[%emt 0:01:20]} Qxb5 {[%emt 0:00:28]} 39. h4 {[%emt 0:00:56]} c4 {[%emt 0:00:30]} 40. Rd1 {[%emt 0:00:00]} Bc5 {[%emt 0:00:00]} 0-1

[Event "ESTCC-65 2025"]
[Site "Swidnica"]
[Date "2025.04.06"]
[Round "2.15"]
[White "Topchii, Gennadii"]
[Black "Vatter, Hans-Joachim"]
[Result "1-0"]
[Annotator "ChessBase"]
[ECO "A21"]
[WhiteElo "2012"]
[BlackElo "2192"]
[PlyCount "41"]
[EventDate "2025.04.05"]
[EventType "team-tourn"]
[EventCountry "POL"]
[SourceTitle "playchess.com"]
[Source "ChessBase"]
[SourceQuality "1"]
[WhiteTeam "Germany"]
[BlackTeam "Germany"]
[WhiteTeamCountry "GER"]
[BlackTeamCountry "GER"]
[TimeControl "40/5400+30:1800+30"]

1. c4 {[%emt 0:00:04]} e5 {[%emt 0:00:33]} 2. Nc3 {[%emt 0:00:23]} Bb4 {[%emt 0:01:18]} 3. Nd5 {[%emt 0:03:56]} Ba5 {[%emt 0:00:29]} 4. Nf3 {[%emt 0:00:53]} c6 {[%emt 0:00:21]} 5. Ne3 {[%emt 0:01:26]} d6 {[%emt 0:06:08]} 6. g3 {[%emt 0:00:32]} Nf6 {[%emt 0:03:37]} 7. Bg2 {[%emt 0:00:12]} O-O {[%emt 0:00:24]} 8. O-O Re8 {[%emt 0:00:16]} 9. d3 {[%emt 0:05:42]} d5 {[%emt 0:07:07]} 10. cxd5 {[%emt 0:00:17]} cxd5 {[%emt 0:00:03]} 11. a3 {[%emt 0:04:46]} Nc6 {[%emt 0:03:32]} 12. b4 {[%emt 0:00:23]} Bb6 {[%emt 0:00:08]} 13. Rb1 {[%emt 0:05:56]} h6 {[%emt 0:05:46]} 14. a4 {[%emt 0:04:51]} a5 {[%emt 0:08:29]} 15. b5 {[%emt 0:00:25]} Nd4 {[%emt 0:00:17]} 16. Nc2 {[%emt 0:21:23]} Nxc2 {[%emt 0:05:28]} 17. Qxc2 {[%emt 0:00:01]} e4 {[%emt 0:00:12]} 18. dxe4 {[%emt 0:01:20]} dxe4 {[%emt 0:00:18]} 19. Rd1 {[%emt 0:00:31]} Bxf2+ {[%emt 0:03:43]} 20. Kxf2 {[%emt 0:00:11]} Qb6+ {[%emt 0:00:02]} 21. Nd4 {[%emt 0:01:53]} 1-0

[Event "ESTCC-65 2025"]
[Site "Swidnica"]
[Date "2025.04.06"]
[Round "2.16"]
[White "Vogel, Robert"]
[Black "Dietze, Frank"]
[Result "1-0"]
[Annotator "ChessBase"]
[ECO "E77"]
[WhiteElo "2145"]
[BlackElo "2102"]
[PlyCount "46"]
[EventDate "2025.04.05"]
[EventType "team-tourn"]
[EventCountry "POL"]
[SourceTitle "playchess.com"]
[Source "ChessBase"]
[SourceQuality "1"]
[WhiteTeam "Germany"]
[BlackTeam "Germany"]
[WhiteTeamCountry "GER"]
[BlackTeamCountry "GER"]
[TimeControl "40/5400+30:1800+30"]

1. d4 {[%emt 0:00:04]} Nf6 {[%emt 0:00:14]} 2. c4 {[%emt 0:00:09]} g6 {[%emt 0:00:10]} 3. Nc3 {[%emt 0:00:09]} Bg7 {[%emt 0:00:17]} 4. e4 {[%emt 0:00:11]} d6 {[%emt 0:00:10]} 5. f4 {[%emt 0:01:27]} c5 {[%emt 0:01:00]} 6. d5 {[%emt 0:01:24]} O-O {[%emt 0:00:12]} 7. Nf3 {[%emt 0:00:18]} e6 {[%emt 0:00:11]} 8. Bd3 {[%emt 0:01:42]} exd5 {[%emt 0:00:32]} 9. cxd5 {[%emt 0:00:09]} b5 {[%emt 0:00:23]} 10. e5 {[%emt 0:04:14]} dxe5 {[%emt 0:00:20]} 11. fxe5 {[%emt 0:01:36]} Ng4 {[%emt 0:00:01]} 12. Bxb5 {[%emt 0:00:34]} Nxe5 {[%emt 0:09:13]} 13. O-O {[%emt 0:00:58]} c4 {[%emt 0:04:39]} 14. Nxe5 {[%emt 0:07:44]} Bxe5 {[%emt 0:00:02]} 15. Qe1 {[%emt 0:01:31]} Qc7 {[%emt 0:06:20]} 16. Bh6 {[%emt 0:13:21]} Rd8 {[%emt 0:04:41]} 17. Qh4 {[%emt 0:05:20]} Nd7 {[%emt 0:21:10]} 18. d6 {[%emt 0:24:44]} Qb6+ {[%emt 0:24:56]} 19. Kh1 {[%emt 0:01:11]} Nc5 {[%emt 0:12:04]} 20. Nd5 {[%emt 0:15:08]} Qxd6 {[%emt 0:01:52]} 21. Ne7+ {[%emt 0:00:41]} Kh8 {[%emt 0:01:18]} 22. Rxf7 {[%emt 0:00:41]} Qd1+ 23. Rf1 Qh5 1-0

[Event "ESTCC-65 2025"]
[Site "Swidnica"]
[Date "2025.04.07"]
[Round "3.1"]
[White "Westerinen, Heikki M.J."]
[Black "Sandner, Gunter"]
[Result "0-1"]
[Annotator "RC"]
[ECO "B22"]
[WhiteElo "2209"]
[BlackElo "2243"]
[PlyCount "90"]
[EventDate "2025.04.05"]
[EventType "team-tourn"]
[EventCountry "POL"]
[SourceTitle "playchess.com"]
[Source "ChessBase"]
[SourceQuality "1"]
[WhiteTeam "Finland"]
[BlackTeam "Germany"]
[WhiteTeamCountry "FIN"]
[BlackTeamCountry "GER"]
[TimeControl "40/5400+30:1800+30"]

1. e4 {[%emt 0:00:05]} c5 {[%emt 0:00:12]} 2. c3 {[%emt 0:00:43]} d5 {[%emt 0:00:59]} 3. exd5 {[%emt 0:00:07]} Qxd5 {[%emt 0:00:03]} 4. d4 {[%emt 0:00:23]} Nc6 {[%emt 0:00:32]} 5. Nf3 {[%emt 0:02:01]} Bg4 {[%emt 0:01:01]} 6. Be2 {[%emt 0:03:36]} cxd4 {[%emt 0:00:45]} 7. cxd4 {[%emt 0:01:08]} e6 {[%emt 0:00:40]} 8. O-O {[%emt 0:01:17]} Nf6 {[%emt 0:00:25]} 9. Nc3 {[%emt 0:01:57]} Qa5 {[%emt 0:01:13]} 10. Be3 {[%emt 0:02:48]} Bd6 {[%emt 0:04:00]} 11. h3 {[%emt 0:03:14]} Bh5 {[%emt 0:00:14]} 12. a3 {[%emt 0:03:56]} O-O {[%emt 0:01:11]} 13. Qb3 {[%emt 0:03:53]} Qc7 {[%emt 0:40:06]} 14. Rfd1 {[%emt 0:21:50]} Bf4 {[%emt 0:08:00]} 15. Bxf4 {[%emt 0:09:21]} Qxf4 {[%emt 0:00:04]} 16. d5 {[%emt 0:02:52]} Bxf3 {[%emt 0:05:06]} 17. Bxf3 {[%emt 0:00:38]} Nd4 {[%emt 0:01:05]} 18. Rxd4 {[%emt 0:00:28]} Qxd4 {[%emt 0:00:02]} 19. dxe6 {[%emt 0:00:21]} fxe6 {[%emt 0:00:20]} 20. Qxe6+ {[%emt 0:00:54]} Kh8 {[%emt 0:00:05]} 21. Rd1 {[%emt 0:02:50]} Qc5 {[%emt 0:04:09]} 22. Qb3 {[%emt 0:08:01]} Rab8 {[%emt 0:00:59]} 23. Ne2 {[%emt 0:02:30]} Qe5 {[%emt 0:07:09]} 24. g3 {[%emt 0:04:01]} b6 {[%emt 0:04:05]} 25. Rd3 {[%emt 0:05:41]} Ne4 {[%emt 0:04:26]} 26. Re3 {[%emt 0:08:52]} Nd2 {[%emt 0:07:54]} 27. Rxe5 {[%emt 0:00:11]} Nxb3 {[%emt 0:00:03]} 28. Bd5 {[%emt 0:02:48]} Rbe8 {[%emt 0:01:22]} 29. f4 {[%emt 0:00:26]} Nc5 {[%emt 0:00:39]} 30. b4 {[%emt 0:02:47]} Nd7 {[%emt 0:02:04]} 31. Re6 {[%emt 0:00:44]} Nf6 {[%emt 0:01:12]} 32. Bb3 {[%emt 0:00:49]} Rxe6 {[%emt 0:00:22]} 33. Bxe6 {[%emt 0:00:02]} Rd8 {[%emt 0:00:17]} 34. Kf2 {[%emt 0:00:44]} Rd3 {[%emt 0:00:22]} 35. a4 {[%emt 0:00:29]} Ra3 {[%emt 0:00:37]} 36. b5 {[%emt 0:01:03]} Ne4+ {[%emt 0:00:45]} 37. Kg2 {[%emt 0:00:19]} Rxa4 {[%emt 0:00:40]} 38. Bd5 {[%emt 0:00:36]} Rb4 {[%emt 0:01:05]} 39. g4 {[%emt 0:01:39]} Nd6 {[%emt 0:00:38]} 40. f5 {[%emt 0:00:00]} Rxb5 {[%emt 0:00:00]} 41. Be6 {[%emt 0:01:19]} a5 {[%emt 0:04:23]} 42. Nd4 {[%emt 0:01:28]} Rb2+ {[%emt 0:00:56]} 43. Kf3 {[%emt 0:00:19]} a4 {[%emt 0:00:40]} 44. Kf4 {[%emt 0:02:03]} a3 {[%emt 0:01:15]} 45. Ke5 {[%emt 0:00:08]} Ne8 {[%emt 0:01:54]} 0-1

[Event "ESTCC-65 2025"]
[Site "Swidnica"]
[Date "2025.04.07"]
[Round "3.2"]
[White "Kyas, Juergen"]
[Black "Joentausta, Hannu"]
[Result "1/2-1/2"]
[Annotator "RC"]
[ECO "B83"]
[WhiteElo "2168"]
[BlackElo "2081"]
[PlyCount "29"]
[EventDate "2025.04.05"]
[EventType "team-tourn"]
[EventCountry "POL"]
[SourceTitle "playchess.com"]
[Source "ChessBase"]
[SourceQuality "1"]
[WhiteTeam "Germany"]
[BlackTeam "Finland"]
[WhiteTeamCountry "GER"]
[BlackTeamCountry "FIN"]
[TimeControl "40/5400+30:1800+30"]

1. e4 {[%emt 0:00:03]} c5 {[%emt 0:00:05]} 2. Nf3 {[%emt 0:00:07]} e6 {[%emt 0:00:06]} 3. d4 {[%emt 0:00:03]} cxd4 {[%emt 0:00:02]} 4. Nxd4 {[%emt 0:00:10]} Nf6 {[%emt 0:00:09]} 5. Nc3 {[%emt 0:00:15]} d6 {[%emt 0:00:13]} 6. Be2 {[%emt 0:00:19]} Be7 {[%emt 0:00:09]} 7. O-O {[%emt 0:00:28]} O-O {[%emt 0:00:16]} 8. f4 {[%emt 0:00:16]} Nc6 {[%emt 0:00:27]} 9. Be3 {[%emt 0:00:13]} Qc7 {[%emt 0:00:31]} 10. Qe1 {[%emt 0:05:56]} Bd7 {[%emt 0:00:13]} 11. Qg3 {[%emt 0:00:53]} Nxd4 {[%emt 0:02:22]} 12. Bxd4 {[%emt 0:00:26]} Bc6 {[%emt 0:01:32]} 13. Bf3 {[%emt 0:03:19]} b5 {[%emt 0:39:33]} 14. a3 {[%emt 0:26:58]} a5 {[%emt 0:00:44]} 15. b4 {[%emt 0:07:47]} 1/2-1/2

[Event "ESTCC-65 2025"]
[Site "Swidnica"]
[Date "2025.04.07"]
[Round "3.3"]
[White "Vinke, Dietmar"]
[Black "Jahnel, Guenther"]
[Result "0-1"]
[Annotator "RC"]
[ECO "A49"]
[WhiteElo "2078"]
[BlackElo "2148"]
[PlyCount "98"]
[EventDate "2025.04.05"]
[EventType "team-tourn"]
[EventCountry "POL"]
[SourceTitle "playchess.com"]
[Source "ChessBase"]
[SourceQuality "1"]
[WhiteTeam "Finland"]
[BlackTeam "Germany"]
[WhiteTeamCountry "FIN"]
[BlackTeamCountry "GER"]
[TimeControl "40/5400+30:1800+30"]

1. d4 {[%emt 0:00:03]} Nf6 {[%emt 0:00:11]} 2. Nf3 {[%emt 0:00:13]} g6 {[%emt 0:00:32]} 3. g3 {[%emt 0:00:49]} Bg7 {[%emt 0:00:36]} 4. Bg2 {[%emt 0:00:03]} d6 {[%emt 0:02:15]} 5. O-O {[%emt 0:00:46]} O-O {[%emt 0:00:37]} 6. Nbd2 {[%emt 0:00:30]} c6 {[%emt 0:04:42]} 7. e4 {[%emt 0:00:20]} Qc7 {[%emt 0:03:29]} 8. Re1 {[%emt 0:08:53]} e5 {[%emt 0:06:08]} 9. dxe5 {[%emt 0:00:23]} dxe5 {[%emt 0:00:03]} 10. b3 {[%emt 0:00:06]} Rd8 {[%emt 0:05:57]} 11. Bb2 {[%emt 0:02:24]} Nfd7 {[%emt 0:05:58]} 12. Qe2 {[%emt 0:28:12]} b6 {[%emt 0:04:56]} 13. Red1 {[%emt 0:05:36]} Ba6 {[%emt 0:03:43]} 14. c4 {[%emt 0:00:08]} Nc5 {[%emt 0:10:51]} 15. Nf1 {[%emt 0:00:12]} Nbd7 {[%emt 0:00:28]} 16. Qc2 {[%emt 0:03:32]} Nf8 {[%emt 0:05:09]} 17. Ne3 {[%emt 0:25:01]} Nce6 {[%emt 0:03:50]} 18. Rxd8 {[%emt 0:09:11]} Rxd8 {[%emt 0:00:30]} 19. Rd1 {[%emt 0:00:08]} Nd4 {[%emt 0:01:55]} 20. Nxd4 {[%emt 0:00:23]} exd4 {[%emt 0:00:14]} 21. Nf1 {[%emt 0:00:08]} c5 {[%emt 0:07:27]} 22. Bc1 {[%emt 0:00:19]} Ne6 {[%emt 0:02:46]} 23. f4 {[%emt 0:00:24]} Re8 {[%emt 0:02:54]} 24. Re1 {[%emt 0:01:13]} f6 {[%emt 0:08:22]} 25. h4 {[%emt 0:02:32]} Nf8 {[%emt 0:02:36]} 26. Nh2 {[%emt 0:00:32]} Bb7 {[%emt 0:01:44]} 27. Re2 {[%emt 0:05:50]} Bc6 {[%emt 0:06:02]} 28. Bf3 {[%emt 0:01:09]} Qb7 {[%emt 0:00:47]} 29. Kf2 {[%emt 0:00:03]} Ne6 {[%emt 0:02:31]} 30. Qd3 {[%emt 0:00:40]} Nd8 {[%emt 0:00:23]} 31. Nf1 {[%emt 0:02:04]} Nf7 {[%emt 0:00:42]} 32. Nd2 {[%emt 0:00:19]} Qc8 {[%emt 0:03:41]} 33. Bg2 {[%emt 0:00:21]} Nh6 {[%emt 0:01:00]} 34. Nf1 {[%emt 0:00:34]} Qb7 {[%emt 0:00:37]} 35. Bf3 {[%emt 0:00:42]} Qc8 {[%emt 0:01:29]} 36. Kg2 {[%emt 0:01:38]} Ng4 {[%emt 0:01:40]} 37. Nh2 {[%emt 0:00:51]} h5 {[%emt 0:01:03]} 38. Nf1 {[%emt 0:00:23]} Qb7 {[%emt 0:00:28]} 39. Bd2 {[%emt 0:00:44]} Kh7 {[%emt 0:00:13]} 40. Bc1 {[%emt 0:00:00]} Re7 {[%emt 0:00:00]} 41. Nd2 {[%emt 0:15:43]} Ne3+ {[%emt 0:07:07]} 42. Kf2 {[%emt 0:00:08]} Nd1+ {[%emt 0:01:19]} 43. Kf1 {[%emt 0:01:59]} Nc3 {[%emt 0:00:30]} 44. Re1 {[%emt 0:00:08]} Nxa2 {[%emt 0:01:01]} 45. Ba3 {[%emt 0:08:11]} Qa6 {[%emt 0:02:47]} 46. Nb1 {[%emt 0:00:02]} Qa5 {[%emt 0:03:18]} 47. e5 {[%emt 0:06:02]} Bxf3 {[%emt 0:01:40]} 48. Qxf3 {[%emt 0:00:02]} fxe5 {[%emt 0:04:20]} 49. fxe5 {[%emt 0:01:07]} Nc3 {[%emt 0:01:12]} 0-1

[Event "ESTCC-65 2025"]
[Site "Swidnica"]
[Date "2025.04.07"]
[Round "3.4"]
[White "Topchii, Gennadii"]
[Black "Patola, Eero"]
[Result "1-0"]
[Annotator "NA RC"]
[ECO "B43"]
[WhiteElo "2012"]
[BlackElo "1872"]
[PlyCount "59"]
[EventDate "2025.04.05"]
[EventType "team-tourn"]
[EventCountry "POL"]
[SourceTitle "playchess.com"]
[Source "ChessBase"]
[SourceQuality "1"]
[WhiteTeam "Germany"]
[BlackTeam "Finland"]
[WhiteTeamCountry "GER"]
[BlackTeamCountry "FIN"]
[TimeControl "40/5400+30:1800+30"]

1. e4 {[%emt 0:00:01]} c5 {[%emt 0:00:16]} 2. Nf3 {[%emt 0:00:30]} e6 {[%emt 0:00:25]} 3. Nc3 {[%emt 0:01:39]} a6 {[%emt 0:00:37]} 4. d4 {[%emt 0:00:51]} cxd4 {[%emt 0:00:21]} 5. Nxd4 {[%emt 0:00:01]} Qc7 {[%emt 0:02:03]} 6. Bd3 {[%emt 0:02:26]} Nf6 {[%emt 0:05:48]} 7. O-O {[%emt 0:00:39]} Nc6 8. Nxc6 {[%emt 0:01:31]} bxc6 {[%emt 0:01:19]} 9. Bg5 {[%emt 0:02:46]} Be7 {[%emt 0:02:18]} 10. Qe2 {[%emt 0:00:31]} e5 {[%emt 0:03:40]} 11. Bc4 {[%emt 0:05:41]} O-O {[%emt 0:02:21]} 12. Rad1 {[%emt 0:01:29]} d6 {[%emt 0:00:39]} 13. h3 {[%emt 0:00:53]} a5 {[%emt 0:06:07]} 14. b3 {[%emt 0:02:51]} Bb7 {[%emt 0:05:27]} 15. Rfe1 {[%emt 0:17:24]} h6 {[%emt 0:02:46]} 16. Bc1 {[%emt 0:03:16]} Rfd8 {[%emt 0:08:54]} 17. Ba3 {[%emt 0:03:50]} Qc8 {[%emt 0:05:21]} 18. f4 {[%emt 0:07:03]} Bf8 {[%emt 0:09:55]} 19. fxe5 {[%emt 0:06:57]} dxe5 {[%emt 0:01:40]} 20. Bxf8 {[%emt 0:00:14]} Rxf8 {[%emt 0:01:20]} 21. Qe3 {[%emt 0:01:01]} Qb8 {[%emt 0:07:47]} 22. Kh2 {[%emt 0:03:26]} Ba6 {[%emt 0:03:55]} 23. Bxa6 {[%emt 0:02:40]} Rxa6 {[%emt 0:00:18]} 24. Qc5 {[%emt 0:00:22]} Re8 {[%emt 0:05:26]} 25. a3 {[%emt 0:00:51]} Qa7 {[%emt 0:03:46]} 26. Na4 {[%emt 0:01:20]} Qxc5 {[%emt 0:03:36]} 27. Nxc5 {[%emt 0:00:09]} Rb6 {[%emt 0:02:51]} 28. Rd6 {[%emt 0:00:27]} Kf8 {[%emt 0:02:17]} 29. Rxf6 {[%emt 0:00:21]} gxf6 {[%emt 0:10:16]} 30. Nd7+ {[%emt 0:00:34]} 1-0